[Event "Titled Tuesday Blitz November 14 Late 2023"]
[White "Kanyamarala, Tarun"]
[Black "Shuvalova, Polina"]
[WhiteFideId "45004714"]
[BlackFideId "24171760"]
[WhiteElo "2508"]
[BlackElo "2688"]
[Result "0-1"]
[Round "3"]
[TimeControl "180+1"]
[Date "2023.11.14"]
[WhiteClock "0:00:49"]
[BlackClock "0:00:49"]
[Board "64"]

1. d4 {[%clk 0:03:00]}  Nf6 {[%clk 0:02:59]} 2. c4 {[%clk 0:03:01]}  e6 {[%clk 0:02:58]} 3. Nc3 {[%clk 0:03:01]}  d5 {[%clk 0:02:59]} 4. cxd5 {[%clk 0:03:00]}  Nxd5 {[%clk 0:03:00]} 5. e4 {[%clk 0:02:59]}  Nxc3 {[%clk 0:03:00]} 6. bxc3 {[%clk 0:03:00]}  c5 {[%clk 0:03:01]} 7. Rb1 {[%clk 0:03:01]}  Be7 {[%clk 0:03:01]} 8. Bc4 {[%clk 0:03:00]}  O-O {[%clk 0:03:01]} 9. Nf3 {[%clk 0:03:01]}  a6 {[%clk 0:02:59]} 10. a4 {[%clk 0:03:00]}  cxd4 {[%clk 0:02:56]} 11. cxd4 {[%clk 0:03:00]}  Qc7 {[%clk 0:02:55]} 12. Qe2 {[%clk 0:02:59]}  Bd7 {[%clk 0:02:53]} 13. Qa2 {[%clk 0:02:43]}  Rc8 {[%clk 0:02:46]} 14. Ne5 {[%clk 0:02:36]}  Bf6 {[%clk 0:02:34]} 15. Be2 {[%clk 0:02:23]}  Qc3+ {[%clk 0:02:08]} 16. Bd2 {[%clk 0:02:19]}  Qxd4 {[%clk 0:02:07]} 17. Nxd7 {[%clk 0:02:19]}  Nxd7 {[%clk 0:02:06]} 18. O-O {[%clk 0:02:19]}  Rc7 {[%clk 0:01:39]} 19. Be3 {[%clk 0:02:06]}  Qe5 {[%clk 0:01:29]} 20. Rfd1 {[%clk 0:02:02]}  Rac8 {[%clk 0:01:28]} 21. Qb3 {[%clk 0:01:43]}  Nc5 {[%clk 0:01:20]} 22. Bxc5 {[%clk 0:01:40]}  Qxc5 {[%clk 0:01:20]} 23. g3 {[%clk 0:01:35]}  g6 {[%clk 0:01:19]} 24. Kg2 {[%clk 0:01:35]}  Kg7 {[%clk 0:01:19]} 25. h4 {[%clk 0:01:30]}  h5 {[%clk 0:01:19]} 26. Qd3 {[%clk 0:01:21]}  Rd8 {[%clk 0:01:16]} 27. Qb3 {[%clk 0:01:14]}  Rd4 {[%clk 0:01:13]} 28. Rdc1 {[%clk 0:01:11]}  Qxc1 {[%clk 0:01:04]} 29. Rxc1 {[%clk 0:01:12]}  Rxc1 {[%clk 0:01:04]} 30. Qxb7 {[%clk 0:01:11]}  Rd2 {[%clk 0:01:02]} 31. Qxa6 {[%clk 0:00:58]}  Rcc2 {[%clk 0:01:02]} 32. Kf3 {[%clk 0:00:53]}  Rxe2 {[%clk 0:00:57]} 33. Qxe2 {[%clk 0:00:54]}  Rxe2 {[%clk 0:00:57]} 34. Kxe2 {[%clk 0:00:55]}  Bc3 {[%clk 0:00:54]} 35. Kd3 {[%clk 0:00:54]}  Be1 {[%clk 0:00:54]} 36. Ke2 {[%clk 0:00:47]}  Ba5 {[%clk 0:00:54]} 37. Kd3 {[%clk 0:00:47]}  Kf6 {[%clk 0:00:53]} 38. f4 {[%clk 0:00:47]}  Be1 {[%clk 0:00:52]} 39. Kc4 {[%clk 0:00:47]}  Bxg3 {[%clk 0:00:50]} 40. a5 {[%clk 0:00:48]}  Bxf4 {[%clk 0:00:49]} 41. a6 {[%clk 0:00:49]} 0-1


[Site "https://www.chess.com"]

[Event "Titled Tuesday Blitz November 14 Late 2023"]
[White "CuteSheepCloud"]
[Black "Kuznecovs, Nikita"]
[BlackFideId "11604557"]
[WhiteElo "2681"]
[BlackElo "2506"]
[Result "0-1"]
[Round "3"]
[TimeControl "180+1"]
[Date "2023.11.14"]
[WhiteClock "0:01:28"]
[BlackClock "0:00:23"]
[Board "65"]

1. e4 {[%clk 0:02:58]}  e6 {[%clk 0:03:00]} 2. d4 {[%clk 0:02:58]}  d5 {[%clk 0:03:00]} 3. Nc3 {[%clk 0:02:59]}  Nf6 {[%clk 0:02:55]} 4. e5 {[%clk 0:02:56]}  Nfd7 {[%clk 0:02:55]} 5. f4 {[%clk 0:02:56]}  c5 {[%clk 0:02:55]} 6. Nf3 {[%clk 0:02:56]}  Nc6 {[%clk 0:02:54]} 7. Be3 {[%clk 0:02:56]}  Be7 {[%clk 0:02:54]} 8. Qd2 {[%clk 0:02:56]}  O-O {[%clk 0:02:53]} 9. O-O-O {[%clk 0:02:54]}  c4 {[%clk 0:02:53]} 10. f5 {[%clk 0:02:54]}  b5 {[%clk 0:02:51]} 11. Nxb5 {[%clk 0:02:52]}  Rb8 {[%clk 0:02:49]} 12. Nc3 {[%clk 0:02:52]}  Qa5 {[%clk 0:01:59]} 13. Re1 {[%clk 0:02:46]}  exf5 {[%clk 0:01:39]} 14. g3 {[%clk 0:02:30]}  Ba6 {[%clk 0:01:06]} 15. Bh3 {[%clk 0:02:26]}  Rxb2 {[%clk 0:00:48]} 16. Nxd5 {[%clk 0:02:11]}  Qxa2 {[%clk 0:00:27]} 17. Nxe7+ {[%clk 0:01:59]}  Nxe7 {[%clk 0:00:28]} 18. Kd1 {[%clk 0:01:59]}  Nd5 {[%clk 0:00:28]} 19. Bxf5 {[%clk 0:01:50]}  c3 {[%clk 0:00:28]} 20. Qc1 {[%clk 0:01:50]}  N7b6 {[%clk 0:00:27]} 21. Ng5 {[%clk 0:01:41]}  h6 {[%clk 0:00:24]} 22. Ne4 {[%clk 0:01:41]}  Rb1 {[%clk 0:00:24]} 23. Re2 {[%clk 0:01:29]}  Nc4 {[%clk 0:00:21]} 24. Ke1 {[%clk 0:01:28]}  Ncxe3 {[%clk 0:00:20]} 25. Kf2 {[%clk 0:01:28]}  Rxc1 {[%clk 0:00:20]} 26. Rxc1 {[%clk 0:01:29]}  Nxf5 {[%clk 0:00:20]} 27. Nc5 {[%clk 0:01:29]}  Bxe2 {[%clk 0:00:20]} 28. Kxe2 {[%clk 0:01:30]}  Qc4+ {[%clk 0:00:20]} 29. Kf3 {[%clk 0:01:29]}  Nxd4+ {[%clk 0:00:20]} 30. Kg2 {[%clk 0:01:30]}  Qxc5 {[%clk 0:00:21]} 31. h3 {[%clk 0:01:29]}  Ne3+ {[%clk 0:00:22]} 32. Kf2 {[%clk 0:01:30]}  Nexc2 {[%clk 0:00:22]} 33. Kg2 {[%clk 0:01:28]}  Nb3 {[%clk 0:00:23]} 0-1


[Site "https://www.chess.com"]

[Event "Titled Tuesday Blitz November 14 Late 2023"]
[White "Kochiev, Ivan"]
[Black "Zakaryan, David"]
[WhiteFideId "2917890"]
[BlackFideId "24101923"]
[WhiteElo "2506"]
[BlackElo "2675"]
[Result "0-1"]
[Round "3"]
[TimeControl "180+1"]
[Date "2023.11.14"]
[WhiteClock "0:00:01"]
[BlackClock "0:00:12"]
[Board "66"]

1. e4 {[%clk 0:02:58]}  e6 {[%clk 0:02:59]} 2. d4 {[%clk 0:02:58]}  d5 {[%clk 0:03:00]} 3. Nd2 {[%clk 0:02:57]}  c5 {[%clk 0:02:59]} 4. exd5 {[%clk 0:02:53]}  Qxd5 {[%clk 0:03:00]} 5. Ngf3 {[%clk 0:02:53]}  cxd4 {[%clk 0:03:00]} 6. Bc4 {[%clk 0:02:54]}  Qd6 {[%clk 0:03:00]} 7. O-O {[%clk 0:02:54]}  Nf6 {[%clk 0:03:00]} 8. Nb3 {[%clk 0:02:54]}  Nc6 {[%clk 0:03:01]} 9. Nbxd4 {[%clk 0:02:55]}  Nxd4 {[%clk 0:03:02]} 10. Nxd4 {[%clk 0:02:56]}  a6 {[%clk 0:03:02]} 11. c3 {[%clk 0:02:55]}  Qc7 {[%clk 0:03:02]} 12. Bd3 {[%clk 0:02:55]}  Bd6 {[%clk 0:03:02]} 13. h3 {[%clk 0:02:55]}  O-O {[%clk 0:03:02]} 14. Qf3 {[%clk 0:02:53]}  Bh2+ {[%clk 0:02:48]} 15. Kh1 {[%clk 0:02:52]}  Be5 {[%clk 0:02:49]} 16. Ne2 {[%clk 0:02:41]}  Bd7 {[%clk 0:02:48]} 17. Bf4 {[%clk 0:02:32]}  Bc6 {[%clk 0:02:47]} 18. Qe3 {[%clk 0:02:31]}  Bxf4 {[%clk 0:02:23]} 19. Nxf4 {[%clk 0:02:21]}  Rad8 {[%clk 0:02:17]} 20. Rad1 {[%clk 0:02:17]}  Rd7 {[%clk 0:02:06]} 21. Bc2 {[%clk 0:02:04]}  Rfd8 {[%clk 0:02:06]} 22. Nd3 {[%clk 0:01:44]}  Be4 {[%clk 0:01:50]} 23. Rd2 {[%clk 0:00:51]}  Qc6 {[%clk 0:01:32]} 24. f3 {[%clk 0:00:39]}  Bxd3 {[%clk 0:01:29]} 25. Rxd3 {[%clk 0:00:34]}  Rxd3 {[%clk 0:01:27]} 26. Bxd3 {[%clk 0:00:35]}  Qd5 {[%clk 0:01:25]} 27. Rd1 {[%clk 0:00:32]}  g6 {[%clk 0:01:09]} 28. Bc2 {[%clk 0:00:20]}  Qa5 {[%clk 0:01:09]} 29. Rxd8+ {[%clk 0:00:17]}  Qxd8 {[%clk 0:01:10]} 30. Qe5 {[%clk 0:00:15]}  Kg7 {[%clk 0:01:00]} 31. Be4 {[%clk 0:00:12]}  b6 {[%clk 0:00:59]} 32. Kh2 {[%clk 0:00:07]}  h6 {[%clk 0:00:58]} 33. Bc2 {[%clk 0:00:05]}  a5 {[%clk 0:00:56]} 34. Bb3 {[%clk 0:00:04]}  Qd2 {[%clk 0:00:54]} 35. Qc7 {[%clk 0:00:04]}  Qe3 {[%clk 0:00:49]} 36. Qc6 {[%clk 0:00:03]}  Nh5 {[%clk 0:00:46]} 37. Qc7 {[%clk 0:00:03]}  Nf4 {[%clk 0:00:41]} 38. Qd6 {[%clk 0:00:03]}  g5 {[%clk 0:00:38]} 39. Qd1 {[%clk 0:00:02]}  h5 {[%clk 0:00:36]} 40. Qg1 {[%clk 0:00:02]}  Qd2 {[%clk 0:00:32]} 41. h4 {[%clk 0:00:02]}  gxh4 {[%clk 0:00:31]} 42. Bc4 {[%clk 0:00:02]}  h3 {[%clk 0:00:22]} 43. Kg3 {[%clk 0:00:02]}  hxg2 {[%clk 0:00:20]} 44. b4 {[%clk 0:00:01]}  axb4 {[%clk 0:00:20]} 45. cxb4 {[%clk 0:00:02]}  e5 {[%clk 0:00:16]} 46. b5 {[%clk 0:00:02]}  Qc3 {[%clk 0:00:13]} 47. Qxb6 {[%clk 0:00:01]}  Qxc4 {[%clk 0:00:12]} 0-1


[Site "https://www.chess.com"]

[Event "Titled Tuesday Blitz November 14 Late 2023"]
[White "Erzhanov, Arman"]
[Black "Luczak, Filip"]
[WhiteFideId "4138821"]
[BlackFideId "1193686"]
[WhiteElo "2505"]
[BlackElo "2659"]
[Result "0-1"]
[Round "3"]
[TimeControl "180+1"]
[Date "2023.11.14"]
[WhiteClock "0:00:01"]
[BlackClock "0:00:08"]
[Board "67"]

1. e4 {[%clk 0:03:00]}  g6 {[%clk 0:02:59]} 2. d4 {[%clk 0:02:58]}  Bg7 {[%clk 0:02:58]} 3. Nc3 {[%clk 0:02:58]}  c5 {[%clk 0:02:56]} 4. d5 {[%clk 0:02:54]}  a6 {[%clk 0:02:54]} 5. a4 {[%clk 0:02:53]}  d6 {[%clk 0:02:55]} 6. Nf3 {[%clk 0:02:52]}  Bg4 {[%clk 0:02:55]} 7. Be2 {[%clk 0:02:51]}  Bxf3 {[%clk 0:02:55]} 8. Bxf3 {[%clk 0:02:51]}  Nd7 {[%clk 0:02:56]} 9. O-O {[%clk 0:02:51]}  Ngf6 {[%clk 0:02:57]} 10. Re1 {[%clk 0:02:50]}  O-O {[%clk 0:02:57]} 11. Bf4 {[%clk 0:02:49]}  Qb6 {[%clk 0:02:54]} 12. Ra2 {[%clk 0:02:39]}  c4 {[%clk 0:02:43]} 13. Be2 {[%clk 0:02:26]}  Rac8 {[%clk 0:02:41]} 14. Be3 {[%clk 0:02:26]}  Qc7 {[%clk 0:02:39]} 15. f3 {[%clk 0:02:26]}  Rb8 {[%clk 0:02:32]} 16. a5 {[%clk 0:02:26]}  Rfc8 {[%clk 0:02:31]} 17. Bf1 {[%clk 0:02:25]}  Nh5 {[%clk 0:02:23]} 18. Qd2 {[%clk 0:02:23]}  Ra8 {[%clk 0:02:14]} 19. Na4 {[%clk 0:02:23]}  Nhf6 {[%clk 0:02:03]} 20. Kh1 {[%clk 0:02:19]}  h5 {[%clk 0:02:02]} 21. Rb1 {[%clk 0:02:16]}  Rab8 {[%clk 0:02:01]} 22. Re1 {[%clk 0:02:15]}  Ra8 {[%clk 0:02:01]} 23. Bd4 {[%clk 0:02:14]}  Ne8 {[%clk 0:01:59]} 24. Bg1 {[%clk 0:02:13]}  Rab8 {[%clk 0:01:57]} 25. Rb1 {[%clk 0:02:11]}  Ra8 {[%clk 0:01:54]} 26. Re1 {[%clk 0:02:10]}  Rab8 {[%clk 0:01:54]} 27. Be3 {[%clk 0:02:07]}  Ra8 {[%clk 0:01:53]} 28. Rb1 {[%clk 0:02:07]}  Rab8 {[%clk 0:01:54]} 29. Rd1 {[%clk 0:02:07]}  Ra8 {[%clk 0:01:54]} 30. Bg5 {[%clk 0:02:00]}  Kf8 {[%clk 0:01:49]} 31. Be3 {[%clk 0:01:59]}  Rab8 {[%clk 0:01:45]} 32. Rb1 {[%clk 0:01:58]}  Ra8 {[%clk 0:01:44]} 33. Ra3 {[%clk 0:01:59]}  Rab8 {[%clk 0:01:42]} 34. g3 {[%clk 0:01:57]}  Kg8 {[%clk 0:01:40]} 35. Bh3 {[%clk 0:01:57]}  Nef6 {[%clk 0:01:38]} 36. Nb6 {[%clk 0:01:55]}  Re8 {[%clk 0:01:36]} 37. Na4 {[%clk 0:01:45]}  e6 {[%clk 0:01:34]} 38. dxe6 {[%clk 0:01:44]}  Rxe6 {[%clk 0:01:33]} 39. Bxe6 {[%clk 0:01:43]}  fxe6 {[%clk 0:01:33]} 40. Rd1 {[%clk 0:01:37]}  d5 {[%clk 0:01:32]} 41. Nb6 {[%clk 0:01:27]}  Nxb6 {[%clk 0:01:25]} 42. Bxb6 {[%clk 0:01:24]}  Qc6 {[%clk 0:01:26]} 43. e5 {[%clk 0:01:12]}  Nd7 {[%clk 0:01:25]} 44. f4 {[%clk 0:01:12]}  Nxb6 {[%clk 0:01:20]} 45. axb6 {[%clk 0:01:13]}  Qxb6 {[%clk 0:01:21]} 46. Qd4 {[%clk 0:01:10]}  Qc6 {[%clk 0:01:18]} 47. Ra5 {[%clk 0:01:04]}  Bf8 {[%clk 0:01:16]} 48. c3 {[%clk 0:01:01]}  Ra8 {[%clk 0:01:04]} 49. Rda1 {[%clk 0:01:01]}  b5 {[%clk 0:01:03]} 50. Qd2 {[%clk 0:00:50]}  Bc5 {[%clk 0:01:00]} 51. Qg2 {[%clk 0:00:50]}  Qb7 {[%clk 0:00:55]} 52. Qf3 {[%clk 0:00:49]}  Bb6 {[%clk 0:00:54]} 53. R5a2 {[%clk 0:00:49]}  a5 {[%clk 0:00:54]} 54. Rf1 {[%clk 0:00:43]}  Rf8 {[%clk 0:00:44]} 55. h3 {[%clk 0:00:41]}  b4 {[%clk 0:00:44]} 56. Kh2 {[%clk 0:00:40]}  Qc6 {[%clk 0:00:38]} 57. Raa1 {[%clk 0:00:36]}  bxc3 {[%clk 0:00:36]} 58. bxc3 {[%clk 0:00:36]}  a4 {[%clk 0:00:36]} 59. h4 {[%clk 0:00:32]}  Bc5 {[%clk 0:00:30]} 60. Rfb1 {[%clk 0:00:29]}  a3 {[%clk 0:00:28]} 61. Qd1 {[%clk 0:00:24]}  Be7 {[%clk 0:00:20]} 62. Qc2 {[%clk 0:00:23]}  Kg7 {[%clk 0:00:19]} 63. Rf1 {[%clk 0:00:22]}  Rf7 {[%clk 0:00:20]} 64. Rab1 {[%clk 0:00:22]}  Bf8 {[%clk 0:00:19]} 65. Qa2 {[%clk 0:00:20]}  Qc5 {[%clk 0:00:19]} 66. Qd2 {[%clk 0:00:19]}  Ra7 {[%clk 0:00:19]} 67. Ra1 {[%clk 0:00:19]}  Be7 {[%clk 0:00:17]} 68. Rfb1 {[%clk 0:00:19]}  Qc6 {[%clk 0:00:17]} 69. Rb8 {[%clk 0:00:18]}  Qc7 {[%clk 0:00:15]} 70. Rb5 {[%clk 0:00:17]}  Qc6 {[%clk 0:00:15]} 71. Rb8 {[%clk 0:00:17]}  Rb7 {[%clk 0:00:15]} 72. Rxb7 {[%clk 0:00:17]}  Qxb7 {[%clk 0:00:16]} 73. Qc2 {[%clk 0:00:17]}  Qb3 {[%clk 0:00:15]} 74. Ra2 {[%clk 0:00:14]}  Bc5 {[%clk 0:00:14]} 75. Kg2 {[%clk 0:00:14]}  d4 {[%clk 0:00:13]} 76. cxd4 {[%clk 0:00:14]}  Bxd4 {[%clk 0:00:14]} 77. Kf1 {[%clk 0:00:10]}  Bb2 {[%clk 0:00:14]} 78. Qe4 {[%clk 0:00:03]}  Qxa2 {[%clk 0:00:09]} 79. Qb7+ {[%clk 0:00:03]}  Kh6 {[%clk 0:00:09]} 80. Qf7 {[%clk 0:00:03]}  Qb1+ {[%clk 0:00:08]} 81. Kg2 {[%clk 0:00:03]}  Qe4+ {[%clk 0:00:07]} 82. Kh2 {[%clk 0:00:03]}  Qc2+ {[%clk 0:00:07]} 83. Kg1 {[%clk 0:00:01]}  Bd4+ {[%clk 0:00:07]} 84. Kh1 {[%clk 0:00:01]}  Qe4+ {[%clk 0:00:07]} 85. Kh2 {[%clk 0:00:01]}  Qe2+ {[%clk 0:00:07]} 86. Kh3 {[%clk 0:00:01]}  Qf1+ {[%clk 0:00:07]} 87. Kh2 {[%clk 0:00:01]}  Qg1+ {[%clk 0:00:08]} 88. Kh3 {[%clk 0:00:01]}  Qh1# {[%clk 0:00:08]} 0-1


[Site "https://www.chess.com"]

[Event "Titled Tuesday Blitz November 14 Late 2023"]
[White "Jesseinkman"]
[Black "Erenberg, Ariel"]
[BlackFideId "2811634"]
[WhiteElo "2487"]
[BlackElo "2629"]
[Result "1/2-1/2"]
[Round "3"]
[TimeControl "180+1"]
[Date "2023.11.14"]
[WhiteClock "0:00:25"]
[BlackClock "0:01:17"]
[Board "70"]

1. d4 {[%clk 0:02:59]}  d5 {[%clk 0:02:57]} 2. Nf3 {[%clk 0:02:59]}  e6 {[%clk 0:02:56]} 3. e3 {[%clk 0:02:59]}  c5 {[%clk 0:02:53]} 4. b3 {[%clk 0:02:57]}  Nc6 {[%clk 0:02:52]} 5. Bb2 {[%clk 0:02:57]}  Nf6 {[%clk 0:02:49]} 6. Bd3 {[%clk 0:02:58]}  b6 {[%clk 0:02:46]} 7. O-O {[%clk 0:02:58]}  Be7 {[%clk 0:02:46]} 8. Nbd2 {[%clk 0:02:57]}  O-O {[%clk 0:02:46]} 9. a3 {[%clk 0:02:57]}  Bb7 {[%clk 0:02:46]} 10. Qe2 {[%clk 0:02:54]}  Rc8 {[%clk 0:02:46]} 11. c4 {[%clk 0:02:44]}  cxd4 {[%clk 0:02:41]} 12. exd4 {[%clk 0:02:43]}  Re8 {[%clk 0:02:29]} 13. Rfe1 {[%clk 0:02:34]}  Bf8 {[%clk 0:02:28]} 14. Ne5 {[%clk 0:02:23]}  Nxe5 {[%clk 0:02:24]} 15. dxe5 {[%clk 0:02:22]}  Nd7 {[%clk 0:02:24]} 16. Rad1 {[%clk 0:02:08]}  Qh4 {[%clk 0:02:14]} 17. Nf3 {[%clk 0:02:03]}  Qh5 {[%clk 0:02:14]} 18. cxd5 {[%clk 0:01:28]}  Bxd5 {[%clk 0:02:09]} 19. Bb5 {[%clk 0:01:11]}  Red8 {[%clk 0:02:08]} 20. Rxd5 {[%clk 0:01:00]}  exd5 {[%clk 0:02:04]} 21. e6 {[%clk 0:01:01]}  fxe6 {[%clk 0:01:39]} 22. Qxe6+ {[%clk 0:01:02]}  Qf7 {[%clk 0:01:39]} 23. Ng5 {[%clk 0:00:44]}  Qxe6 {[%clk 0:01:33]} 24. Nxe6 {[%clk 0:00:45]}  Nc5 {[%clk 0:01:26]} 25. Nxd8 {[%clk 0:00:43]}  Rxd8 {[%clk 0:01:27]} 26. b4 {[%clk 0:00:39]}  Ne4 {[%clk 0:01:24]} 27. Rd1 {[%clk 0:00:35]}  Rc8 {[%clk 0:01:13]} 28. Bd7 {[%clk 0:00:29]}  Rc2 {[%clk 0:01:11]} 29. Be6+ {[%clk 0:00:24]}  Kh8 {[%clk 0:01:10]} 30. Bxd5 {[%clk 0:00:22]}  Nxf2 {[%clk 0:01:06]} 31. Rf1 {[%clk 0:00:11]}  Rxb2 {[%clk 0:01:05]} 32. Rxf2 {[%clk 0:00:10]}  Rb1+ {[%clk 0:01:04]} 33. Rf1 {[%clk 0:00:11]}  Rxf1+ {[%clk 0:01:05]} 34. Kxf1 {[%clk 0:00:11]}  a5 {[%clk 0:01:05]} 35. bxa5 {[%clk 0:00:11]}  bxa5 {[%clk 0:01:06]} 36. a4 {[%clk 0:00:12]}  Bb4 {[%clk 0:01:06]} 37. Ke2 {[%clk 0:00:12]}  g6 {[%clk 0:01:07]} 38. h3 {[%clk 0:00:12]}  Kg7 {[%clk 0:01:08]} 39. g4 {[%clk 0:00:13]}  Kf6 {[%clk 0:01:09]} 40. Kf3 {[%clk 0:00:13]}  h6 {[%clk 0:01:09]} 41. Bc6 {[%clk 0:00:14]}  g5 {[%clk 0:01:09]} 42. Bb5 {[%clk 0:00:15]}  Ke5 {[%clk 0:01:10]} 43. Bc6 {[%clk 0:00:15]}  Kd4 {[%clk 0:01:10]} 44. Bb5 {[%clk 0:00:16]}  Kc5 {[%clk 0:01:11]} 45. Be8 {[%clk 0:00:16]}  Kd6 {[%clk 0:01:11]} 46. Bb5 {[%clk 0:00:17]}  Kd5 {[%clk 0:01:12]} 47. Kg2 {[%clk 0:00:18]}  Bd6 {[%clk 0:01:12]} 48. Kf3 {[%clk 0:00:18]}  Bf4 {[%clk 0:01:13]} 49. Kg2 {[%clk 0:00:18]}  Kd4 {[%clk 0:01:14]} 50. Kf3 {[%clk 0:00:18]}  Kc3 {[%clk 0:01:15]} 51. Be8 {[%clk 0:00:19]}  Kd2 {[%clk 0:01:16]} 52. Bb5 {[%clk 0:00:20]}  Kc3 {[%clk 0:01:16]} 53. Kg2 {[%clk 0:00:20]}  Kd4 {[%clk 0:01:17]} 54. Be8 {[%clk 0:00:21]}  Kc5 {[%clk 0:01:18]} 55. Bb5 {[%clk 0:00:21]}  Kd6 {[%clk 0:01:19]} 56. Kf3 {[%clk 0:00:22]}  Ke7 {[%clk 0:01:20]} 57. Kg2 {[%clk 0:00:23]}  Be5 {[%clk 0:01:20]} 58. Kf3 {[%clk 0:00:23]}  Bf4 {[%clk 0:01:20]} 59. Ke4 {[%clk 0:00:24]}  Kf6 {[%clk 0:01:21]} 60. Bd3 {[%clk 0:00:24]}  Bd6 {[%clk 0:01:21]} 61. Bb5 {[%clk 0:00:25]}  Bb4 {[%clk 0:01:17]} 62. Bc4 {[%clk 0:00:25]} 1/2-1/2


[Site "https://www.chess.com"]

[Event "Titled Tuesday Blitz November 14 Late 2023"]
[White "ArtemDyachuk"]
[Black "Sztokbant, Bernardo Vainzoff"]
[BlackFideId "2115956"]
[WhiteElo "2627"]
[BlackElo "2485"]
[Result "0-1"]
[Round "3"]
[TimeControl "180+1"]
[Date "2023.11.14"]
[WhiteClock "0:00:00"]
[BlackClock "0:00:03"]
[Board "71"]

1. e4 {[%clk 0:03:00]}  c5 {[%clk 0:03:00]} 2. Nf3 {[%clk 0:03:00]}  e6 {[%clk 0:03:00]} 3. d4 {[%clk 0:02:59]}  cxd4 {[%clk 0:03:01]} 4. Nxd4 {[%clk 0:03:00]}  Nc6 {[%clk 0:03:01]} 5. Nc3 {[%clk 0:03:00]}  Qc7 {[%clk 0:03:01]} 6. Be3 {[%clk 0:02:56]}  a6 {[%clk 0:03:02]} 7. f4 {[%clk 0:02:55]}  Nf6 {[%clk 0:03:01]} 8. e5 {[%clk 0:02:49]}  Ng8 {[%clk 0:03:00]} 9. Nb3 {[%clk 0:02:41]}  d6 {[%clk 0:02:54]} 10. exd6 {[%clk 0:02:38]}  Bxd6 {[%clk 0:02:55]} 11. Qf3 {[%clk 0:02:33]}  Nge7 {[%clk 0:02:53]} 12. O-O-O {[%clk 0:02:31]}  Nf5 {[%clk 0:02:53]} 13. Bd2 {[%clk 0:02:29]}  O-O {[%clk 0:02:50]} 14. g4 {[%clk 0:02:28]}  Nfe7 {[%clk 0:02:49]} 15. Ne4 {[%clk 0:02:26]}  Rd8 {[%clk 0:02:39]} 16. Bd3 {[%clk 0:02:23]}  Nb4 {[%clk 0:02:14]} 17. Bxb4 {[%clk 0:02:02]}  Bxb4 {[%clk 0:02:15]} 18. a3 {[%clk 0:02:03]}  Bd6 {[%clk 0:02:03]} 19. Nxd6 {[%clk 0:02:03]}  Rxd6 {[%clk 0:02:04]} 20. Be4 {[%clk 0:02:04]}  Nd5 {[%clk 0:01:49]} 21. Bxd5 {[%clk 0:01:56]}  exd5 {[%clk 0:01:50]} 22. Rhe1 {[%clk 0:01:55]}  Bd7 {[%clk 0:01:46]} 23. Nd4 {[%clk 0:01:54]}  Rc8 {[%clk 0:01:40]} 24. c3 {[%clk 0:01:51]}  Rf6 {[%clk 0:01:29]} 25. Rf1 {[%clk 0:01:40]}  Ba4 {[%clk 0:01:24]} 26. Rd2 {[%clk 0:01:29]}  Qc4 {[%clk 0:01:23]} 27. g5 {[%clk 0:01:17]}  Qa2 {[%clk 0:01:18]} 28. Qd3 {[%clk 0:01:14]}  Rb6 {[%clk 0:01:10]} 29. Ne2 {[%clk 0:00:44]}  d4 {[%clk 0:00:55]} 30. Qf5 {[%clk 0:00:28]}  Qa1+ {[%clk 0:00:47]} 31. Qb1 {[%clk 0:00:28]}  Qxb1+ {[%clk 0:00:45]} 32. Kxb1 {[%clk 0:00:29]}  dxc3 {[%clk 0:00:44]} 33. Nxc3 {[%clk 0:00:30]}  Bb3 {[%clk 0:00:37]} 34. Re1 {[%clk 0:00:23]}  h6 {[%clk 0:00:34]} 35. h4 {[%clk 0:00:23]}  Be6 {[%clk 0:00:29]} 36. Re3 {[%clk 0:00:20]}  Rc4 {[%clk 0:00:24]} 37. Rf2 {[%clk 0:00:11]}  Rb3 {[%clk 0:00:24]} 38. Kc2 {[%clk 0:00:07]}  Rb6 {[%clk 0:00:21]} 39. f5 {[%clk 0:00:07]}  Bd7 {[%clk 0:00:17]} 40. Re7 {[%clk 0:00:07]}  Ba4+ {[%clk 0:00:12]} 41. Kd3 {[%clk 0:00:06]}  Rxh4 {[%clk 0:00:09]} 42. g6 {[%clk 0:00:07]}  fxg6 {[%clk 0:00:08]} 43. fxg6 {[%clk 0:00:06]}  Rxg6 {[%clk 0:00:08]} 44. Rxb7 {[%clk 0:00:04]}  Rh3+ {[%clk 0:00:06]} 45. Kd2 {[%clk 0:00:04]}  Rd6+ {[%clk 0:00:05]} 46. Ke1 {[%clk 0:00:03]}  Rh1+ {[%clk 0:00:04]} 47. Ke2 {[%clk 0:00:03]}  Bc6 {[%clk 0:00:02]} 48. Rc7 {[%clk 0:00:03]}  Kh7 {[%clk 0:00:02]} 49. Rff7 {[%clk 0:00:03]}  Re6+ {[%clk 0:00:02]} 50. Kd3 {[%clk 0:00:02]}  Rh3+ {[%clk 0:00:02]} 51. Kc4 {[%clk 0:00:02]}  Rg3 {[%clk 0:00:02]} 52. Kc5 {[%clk 0:00:02]}  Bg2 {[%clk 0:00:01]} 53. Kb4 {[%clk 0:00:01]}  h5 {[%clk 0:00:01]} 54. Na4 {[%clk 0:00:01]}  Rg4+ {[%clk 0:00:02]} 55. Ka5 {[%clk 0:00:02]}  h4 {[%clk 0:00:03]} 56. Nc5 {[%clk 0:00:01]}  Re5 {[%clk 0:00:03]} 57. Kb6 {[%clk 0:00:01]}  h3 {[%clk 0:00:03]} 58. Rf5 {[%clk 0:00:00]}  Rg6+ {[%clk 0:00:03]} 0-1


[Site "https://www.chess.com"]